Cogmind - Beta 15 @@@ ROGUE MODE // 2025.10.04 @ 18:00:25 Player: SuperSwiss Result: Self-destructed Performance ------------- Evolutions (4) 2000 Regions Visited (11) 2200 Robots Destroyed (108) 540 Value Destroyed (7386) 7386 Prototype IDs (26) 520 Alien Tech Used (0) 0 Bonus (5243) 5243 TOTAL SCORE: 17889 Bonus ------- High Alert Combat Kills 1343 Follower Combat Kills 1014 Entered Garrisons 600 Used RIF Installer 2000 Aligned with FarCom 300 Friendly Fire -14 Cogmind --------- Core Integrity 638/850 Matter 198/300 Energy 340/340 System Corruption 0% Temperature Cool (0) Movement Rolling (160) Ox4 Location -6/Factory Parts ------- > --- POWER (1) -------- Particle Reactor > --- PROPULSION (4) --- Improved Heavy Siege Treads Armored Huge Wheel > --- UTILITY (7) ------ Improved Cooling System Huge Storage Unit Advanced Weapon Cycler Remote Shield Relay Coupler [Grunt] (27) Relay Coupler [Demolisher] (24) Relay Coupler [Specialist] (18) > --- WEAPON (3) ------- Heavy Linear Accelerator Power Sword > --- INVENTORY (25) --- Fission Core Biometal Medium Treads Biometal Medium Treads Matter Compressor (250) Advanced Force Field Relay Coupler [NC] (28) Relay Coupler [Grunt] (33) Relay Coupler [Sentry] (26) Relay Coupler [Sentry] (21) Relay Coupler [Specialist] (22) Relay Coupler [Heavy] (20) Relay Coupler [Behemoth] (12) Relay Coupler [Proto] (9) Relay Coupler [Proto] (9) Relay Coupler [Proto] (9) Relay Coupler [Proto] (9) Advanced Corruption Screen YOLO Cannon Coil Gun Coil Gun Heavy Flak Cannon Rocket Launcher Heavy Missile Launcher Remote Datajack Peak State ------------ > --- POWER ------------ Particle Reactor > --- PROPULSION ------- Improved Heavy Siege Treads Armored Huge Wheel > --- UTILITY ---------- Improved Cooling System Huge Storage Unit Advanced Force Field Remote Shield Relay Coupler [Grunt] Relay Coupler [Demolisher] Relay Coupler [Specialist] > --- WEAPON ----------- Heavy Linear Accelerator Power Sword > --- INVENTORY -------- Fission Core Biometal Medium Treads Biometal Medium Treads Matter Compressor Advanced Weapon Cycler Relay Coupler [NC] Relay Coupler [Grunt] Relay Coupler [Sentry] Relay Coupler [Sentry] Relay Coupler [Specialist] Relay Coupler [Heavy] Relay Coupler [Behemoth] Relay Coupler [Proto] Relay Coupler [Proto] Relay Coupler [Proto] Relay Coupler [Proto] Advanced Corruption Screen YOLO Cannon Coil Gun Coil Gun Heavy Flak Cannon Rocket Launcher Heavy Missile Launcher Remote Datajack [Rating: 99] Favorites ----------- Power Particle Reactor Engine Ion Engine Power Core Fission Core Reactor Particle Reactor Propulsion Armored Huge Wheel Treads Light Treads Leg Flexi-carbon Leg Wheel Armored Huge Wheel Utility Huge Storage Unit Device Structural Scanner Storage Huge Storage Unit Processor Advanced Targeting Computer Hackware Relay Coupler [Sentry] Protection Light Armor Plating Weapon Remote Datajack Energy Gun Medium Laser Energy Cannon YOLO Cannon Ballistic Gun Enhanced Autogun Ballistic Cannon Improved Light Cannon Launcher Rocket Launcher Special Weapon Remote Datajack Impact Weapon Heavy Flail Slashing Weapon Power Sword Special Melee Weapon Datajack Build | -11 -10 -10 -10 -9 -8 -8 -7 -7 -6 -6 -6 ------- Run | Yrd Mat Min Exi Min Mat Gar Fac Gar Fac Gar Fac Slots Evolved 8 | . . . . . 4 . 2 . 2 . . Power . | . . . . . . . . . . . . Propulsion 2 | . . . . . . . 1 . 1 . . Utility 5 | . . . . . 4 . 1 . . . . Weapon 1 | . . . . . . . . . 1 . . Parts Attached 126 | 7 8 4 2 . 14 20 14 22 9 24 2 Power 8 | 1 . 1 . . . 2 1 1 . 2 . Engine 3 | 1 . 1 . . . . . . . 1 . Core 3 | . . . . . . 2 1 . . . . Reactor 2 | . . . . . . . . 1 . 1 . Propulsion 15 | 2 1 . . . 2 1 1 1 2 4 1 Treads 7 | . 1 . . . 1 1 . . . 4 . Leg 2 | . . . . . . . . . 2 . . Wheel 6 | 2 . . . . 1 . 1 1 . . 1 Hover . | . . . . . . . . . . . . Flight . | . . . . . . . . . . . . Utility 69 | 2 3 3 . . 8 10 8 15 5 14 1 Device 20 | 1 1 2 . . 1 3 1 5 1 4 1 Storage 6 | 1 2 . . . 1 1 . 1 . . . Processor 4 | . . . . . 3 . 1 . . . . Hackware 33 | . . . . . 1 6 4 9 4 9 . Protection 6 | . . 1 . . 2 . 2 . . 1 . Artifact . | . . . . . . . . . . . . Weapon 34 | 2 4 . 2 . 4 7 4 5 2 4 . Energy Gun 2 | 2 . . . . . . . . . . . Energy Cannon 1 | . . . . . . . . 1 . . . Ballistic Gun 11 | . . . . . 1 5 . 2 1 2 . Ballistic Cannon 7 | . 2 . . . 2 . 1 1 . 1 . Launcher 4 | . 2 . . . . . 1 1 . . . Special Weapon 5 | . . . 1 . . 2 1 . . 1 . Impact Weapon 1 | . . . . . 1 . . . . . . Slashing Weapon 1 | . . . . . . . . . 1 . . Piercing Weapon . | . . . . . . . . . . . . Special Melee Weapon 2 | . . . 1 . . . 1 . . . . Unidentified Prototypes 1 | . . . . . 1 . . . . . . Parts Lost 28 | . 1 1 . . 1 12 5 5 . 3 . Power 3 | . . 1 . . . . 1 . . 1 . Propulsion 5 | . . . . . . 4 . 1 . . . Utility 15 | . 1 . . . 1 5 3 3 . 2 . Weapon 5 | . . . . . . 3 1 1 . . . Highest Loss Streak 3 | . 1 1 . . 1 3 3 3 . 1 . To Critical Strikes . | . . . . . . . . . . . . Average Backups 20 | 2 9 12 12 13 17 23 22 22 23 23 24 Power 1 | . 1 . . . . 1 . 1 1 . 1 Propulsion 1 | 1 1 1 1 1 1 1 . . . 1 2 Utility 9 | . . 2 2 2 3 10 11 11 13 11 14 Weapon 8 | . 5 7 8 9 10 9 8 8 8 8 6 Tool/Special . | . . . . . . . . . . . . Unused Backups 41 | . 3 . . . 1 12 3 4 1 3 14 Power 2 | . . . . . . 1 . 1 . . . Propulsion 1 | . 1 . . . . . . . . . . Utility 27 | . . . . . . 9 . 3 1 1 13 Weapon 11 | . 2 . . . 1 2 3 . . 2 1 Tool/Special . | . . . . . . . . . . . . Average Slot Usage (%) 90 | . 97 100 100 100 97 95 89 83 88 83 80 Engine 2 | . 14 14 14 14 9 2 . . . . . Core 3 | . . . . . . 6 6 4 . . . Reactor 2 | . . . . . . . . 2 6 5 6 Treads 4 | . 12 14 14 14 3 7 . . . 5 6 Wheel 10 | . 15 14 14 14 14 9 14 9 6 5 6 Device 12 | . 10 4 14 14 18 15 11 9 14 11 20 Storage 9 | . 15 14 14 14 9 16 7 7 6 6 6 Processor 5 | . . . . . 8 9 7 11 . . . Hackware 15 | . . . . . 5 9 20 18 25 25 20 Protection 2 | . . 9 . . 11 1 4 2 . 1 . Ballistic Gun 5 | . . . . . 2 10 3 7 5 7 . Ballistic Cannon 4 | . 25 28 4 3 11 . . . 3 3 6 Special Weapon 4 | . . . 11 14 . 5 4 4 4 4 2 Impact Weapon 1 | . . . . . 3 1 3 . . . . Peak Build Rating 99 | 7 11 12 13 13 32 42 52 63 76 98 99 Average Rating 49 | 4 9 11 12 12 25 33 47 53 70 84 98 On Entrance 33 | . 7 11 12 13 13 32 42 47 61 69 98 Naked Turns . | . . . . . . . . . . . . Heaviest Build 150 | 13 32 34 34 34 100 99 106 119 119 150 150 Greatest Support 145 | 26 26 16 16 16 26 26 38 38 28 145 28 Greatest Overweight (x) 9 | . 1 2 2 2 7 9 9 4 4 5 5 Average Overweight (x) 3 | . . 1 1 1 2 7 2 2 3 3 4 Largest Inventory Capacity 25 | 8 15 15 15 15 25 25 25 25 25 25 25 Average Capacity 23 | 7 12 15 15 15 21 25 25 25 25 25 25 Most Carried 25 | 4 13 14 14 15 25 25 25 25 25 25 25 Average Carried 22 | 2 9 12 12 14 18 24 24 24 24 24 25 Final Capacity 25 | 8 15 15 15 15 25 25 25 25 25 25 25 Final Carried 25 | 4 13 12 14 15 25 25 25 25 25 25 25 Class Distribution -------------------- 44% | Bothacker-Mutant 32% | Mutant 8% | Botlord-Tank 7% | Bothacker-Tank 4% | Botlord-Mutant Dominant Class ---------------- Mutant | -10/Materials Mutant | -10/Mines Mutant | -10/Exiles Mutant | -9/Mines Mutant | -8/Materials Mutant | -8/Garrison Bothacker-Mutant | -7/Factory Bothacker-Mutant | -7/Garrison Bothacker-Mutant | -6/Factory Bothacker-Tank | -6/Garrison Botlord-Mutant | -6/Factory Resources | -11 -10 -10 -10 -9 -8 -8 -7 -7 -6 -6 -6 ----------- Run | Yrd Mat Min Exi Min Mat Gar Fac Gar Fac Gar Fac Matter Collected 5393 | 267 342 64 . . 685 1124 499 950 237 1225 . Remotely . | . . . . . . . . . . . . Salvage Created 3395 | 37 314 24 . . 427 1072 302 375 126 718 . Parts 186 | 4 25 2 . . 18 64 21 20 5 27 . Haulers Intercepted 5 | . 2 . . . 2 . 1 . . . . Recyclers Shooed 2 | 1 . . . . . . . . 1 . . Parts Field Recycled . | . . . . . . . . . . . . Retrieved Matter . | . . . . . . . . . . . . Parts Self-Destructed . | . . . . . . . . . . . . Prevented . | . . . . . . . . . . . . Kills | -11 -10 -10 -10 -9 -8 -8 -7 -7 -6 -6 -6 ------- Run | Yrd Mat Min Exi Min Mat Gar Fac Gar Fac Gar Fac Combat Hostiles Destroyed 90 | . 12 2 . . 6 26 7 16 1 20 . Melee 1 | . . . . . . . . . 1 . . Guns 37 | . . . . . . 22 1 9 . 5 . Cannons 21 | . 7 2 . . 5 . 2 . . 5 . AOE 28 | . 5 . . . . 4 4 7 . 8 . Classes Destroyed 19 | 1 4 . . . 2 1 4 2 1 4 . Worker 2 | . 2 . . . . . . . . . . Builder 3 | . . . . . . . 3 . . . . Tunneler 2 | 2 . . . . . . . . . . . Hauler 5 | . 2 . . . 2 . 1 . . . . Recycler 2 | . . . . . 1 . . . 1 . . Carrier 1 | . . . . . . . . . . 1 . Mechanic 1 | . . . . . . . 1 . . . . Watcher 2 | . . . . . . . 1 . . 1 . Swarmer 23 | . 6 . . . . 4 . 5 . 8 . Cutter 3 | . . . . . . . . 3 . . . Saboteur 1 | . . . . . . . . . 1 . . Grunt 37 | . 6 2 . . 3 15 2 7 . 2 . Brawler 2 | . . . . . . . 1 . . 1 . Duelist 1 | . . . . . . . . 1 . . . Sentry 8 | . . . . . 3 . . . . 5 . Hunter 2 | . . . . . . . . . . 2 . Programmer 11 | . . . . . . 7 4 . . . . Behemoth 1 | . . . . . . . . . . 1 . Executioner 1 | . . . . . . . . . . 1 . Best Kill Streak 8 | 2 5 2 . . 2 4 8 7 1 7 . Combat Bots Only 7 | . 3 2 . . 1 4 4 7 1 7 . Max Kills in Single Turn 8 | 1 3 1 . . 1 3 8 3 1 4 . Gunslinging 1 | . . . . . . 1 . . . . . Exploded 4 | . 3 . . . . 3 4 3 . 4 . Melee 1 | . . . . . . . . . 1 . . Uniques/NPCs Destroyed . | . . . . . . . . . . . . Combat | -11 -10 -10 -10 -9 -8 -8 -7 -7 -6 -6 -6 -------- Run | Yrd Mat Min Exi Min Mat Gar Fac Gar Fac Gar Fac Hostile Shots Fired 563 | . 28 21 . . 15 173 42 132 1 151 . Missed 161 | . 10 7 . . 2 38 8 44 . 52 . Hits 402 | . 18 14 . . 13 135 34 88 1 99 . Melee 8 | . . . . . . . . 4 1 3 . Projectile 394 | . 18 14 . . 13 135 34 84 . 96 . AOE 3 | . . . . . . . 2 1 . . . Critical Strikes 12 | . . . . . . 7 1 2 . 2 . Damage Taken 5189 | . 202 186 . . 200 1875 892 914 46 874 . Core 993 | . 56 . . . 26 312 185 202 . 212 . Absorbed by Shields 923 | . . . . . . 167 . 457 1 298 . Reduced by Siege Mode 26 | . . . . . . . . . . 26 . Core Remaining (%) 64 | 100 . . . 77 . 38 . 44 . . . Volleys Fired 325 | 4 32 9 . 3 10 86 30 62 12 71 6 Largest 3 | 2 2 2 . 1 2 2 2 2 2 3 1 Hottest 144 | 100 100 66 . 100 66 50 50 58 72 144 70 Shots Fired 539 | 8 63 18 . 3 20 166 34 92 13 116 6 Gun 300 | 8 6 . . . . 157 8 66 2 53 . Cannon 139 | . 53 18 . . 20 . 11 . 1 30 6 Launcher 17 | . 4 . . . . 3 1 7 . 2 . Special 83 | . . . . 3 . 6 14 19 10 31 . Kinetic 419 | . 53 18 . . 20 157 19 66 3 77 6 Thermal 24 | 8 6 . . 3 . 1 . . . 6 . Explosive 17 | . 4 . . . . 3 1 7 . 2 . Electromagnetic . | . . . . . . . . . . . . Robot Hit Streak 31 | 4 9 14 . . 9 20 7 18 5 31 . Robot Miss Streak 6 | 2 6 1 . . 1 3 5 6 5 5 . Penetration Max . | . . . . . . . . . . . . Secondary Targets 5 | . . . . . . 4 . 1 . . . Max Gunslinging Chain 1 | . . . . . . 1 . 1 . . . Shots Hit Robots 389 | 4 33 14 . . 19 119 31 64 13 92 . Core Hits 217 | 2 18 3 . . 9 52 23 40 2 68 . Critical Kills 3 | . . . . . . . 1 1 . 1 . Critical Parts Destroyed 6 | . . . . . 2 3 . 1 . . . Critical Strikes 11 | . 1 . . . 3 3 1 2 . 1 . Burn 1 | . 1 . . . . . . . . . . Meltdown 1 | . . . . . . . . . . 1 . Destroy 5 | . . . . . . 3 . 2 . . . Blast 1 | . . . . . 1 . . . . . . Smash 3 | . . . . . 2 . 1 . . . . Melee Attacks 52 | . . . . . 12 9 14 3 7 2 5 Impact 37 | . . . . . 12 9 13 3 . . . Slashing 14 | . . . . . . . . . 7 2 5 Piercing . | . . . . . . . . . . . . Sneak Attacks 5 | . . . . . 1 . 1 . 2 1 . Combat Hostiles . | . . . . . . . . . . . . Follow-up Attacks . | . . . . . . . . . . . . Damage Inflicted 11059 | 50 1112 330 . . 635 2275 1885 1587 176 3009 . Guns 3797 | 50 13 . . . . 2103 148 838 16 629 . Cannons 2649 | . 634 330 . . 295 . 303 . 24 1063 . Explosions 3826 | . 465 . . . . 172 1214 749 . 1226 . Melee 787 | . . . . . 340 . 220 . 136 91 . Ramming . | . . . . . . . . . . . . Kinetic 6058 | . 634 330 . . 295 2103 451 838 40 1367 . Thermal 1921 | 50 13 . . . . . 1206 . . 652 . Explosive 2293 | . 465 . . . . 172 8 749 . 899 . Electromagnetic . | . . . . . . . . . . . . Impact 560 | . . . . . 340 . 220 . . . . Slashing 227 | . . . . . . . . . 136 91 . Piercing . | . . . . . . . . . . . . Highest Corruption 8 | . . 1 1 1 . 8 4 . . . . Average Corruption 5 | . . 1 1 1 . 7 2 . . . . Corruption Purged 5 | . . . . . . . 5 . . . . Corruption Blocked . | . . . . . . . . . . . . Effects 103 | . . . 1 2 . 90 10 . . . . Message Errors 28 | . . . . . . 22 6 . . . . Matter Fused 18 | . . . . 1 . 16 1 . . . . Heat Flow Errors 19 | . . . 1 . . 16 2 . . . . Energy Discharges 10 | . . . . . . 10 . . . . . Parts Rejected 1 | . . . . . . 1 . . . . . Parts Fused 1 | . . . . . . 1 . . . . . Data Loss (minor) 13 | . . . . 1 . 11 1 . . . . Data Loss (major) 6 | . . . . . . 6 . . . . . Misfires 4 | . . . . . . 4 . . . . . Alerts 1 | . . . . . . 1 . . . . . Weapon Failures 2 | . . . . . . 2 . . . . . Overload Shots . | . . . . . . . . . . . . Overflow Damage 500 | . 13 20 . . 188 . 146 24 . 109 . Projectiles 57 | . . 20 . . . . 5 . . 32 . Explosions 255 | . 13 . . . . . 141 24 . 77 . Melee 188 | . . . . . 188 . . . . . . Knockbacks 21 | . 5 1 . . 5 . 5 . 1 4 . Impact 3 | . . . . . 3 . . . . . . Kinetic 17 | . 4 1 . . 2 . 5 . 1 4 . Secondary 1 | . 1 . . . . . . . . . . Self-Inflicted Damage 38 | . . . . . . . . 38 . . . Shots 1 | . . . . . . . . 1 . . . Rammed . | . . . . . . . . . . . . Targets Rammed . | . . . . . . . . . . . . Kicked . | . . . . . . . . . . . . Crushed . | . . . . . . . . . . . . Highest Temperature 267 | 156 117 207 206 60 30 244 267 48 . 110 30 Average Temperature 54 | 81 23 98 104 32 14 81 85 12 . 40 17 Received Heat Transfer 1321 | . 96 102 . . 99 531 120 225 . 148 . Siege Activations 4 | . . . . . . . . . . 4 . Total Turns 43 | . . . . . . . . . . 43 . Longest Duration 15 | . . . . . . . . . . 15 . Martial Activations . | . . . . . . . . . . . . Shielding Activations . | . . . . . . . . . . . . Robots Disrupted . | . . . . . . . . . . . . Combat Hostiles . | . . . . . . . . . . . . Robots Corrupted 2 | . . . . . 2 . . . . . . Combat Hostiles 1 | . . . . . 1 . . . . . . Parts Fried 1 | . . . . . 1 . . . . . . Impact Corruptions 5 | . . . . . 5 . . . . . . Robots Melted 2 | . . . . . . . . . . 2 . Combat Hostiles 2 | . . . . . . . . . . 2 . Parts Melted 4 | . . . . . . . 1 . . 3 . Heat Transferred 1679 | 148 111 . . . . . 700 . . 720 . Parts Sabotaged 2 | . . . . . . . . . 2 . . Parts Stolen . | . . . . . . . . . . . . Parts Stripped . | . . . . . . . . . . . . Power Chain Reactions . | . . . . . . . . . . . . Alert | -11 -10 -10 -10 -9 -8 -8 -7 -7 -6 -6 -6 ------- Run | Yrd Mat Min Exi Min Mat Gar Fac Gar Fac Gar Fac Maximum Alert Level 5 | . . . . . . 5 3 5 4 5 4 Low Security (%) 22 | 100 100 100 . 100 100 12 . . . . . Level 1 1 | . . . . . . 8 . . . . . Level 2 19 | . . . . . . 19 37 37 . 22 . Level 3 28 | . . . . . . 29 62 11 94 18 5 Level 4 15 | . . . . . . 15 . 34 5 19 94 Level 5 12 | . . . . . . 15 . 16 . 40 . High Security . | . . . . . . . . . . . . Max Security . | . . . . . . . . . . . . Peak Influence 2592 | 5 175 53 . 3 56 1936 1016 2161 1134 2592 1360 Initial 1360 | . . 13 . . . . 1016 484 1134 548 1360 Average 816 | . 52 21 . . 10 870 732 1091 921 1365 1216 Influence Increases 7778 | 10 377 50 . 3 260 2086 518 1787 452 2214 21 Destroy 0b10 Robot/C 2420 | . 240 40 . . 120 520 180 460 200 660 . Destroy 0b10 Robot/NC 100 | 10 20 . . . 15 . 40 . 10 5 . Destroy Leader 326 | . 54 10 . . 34 20 58 60 30 60 . Allied During Kill 603 | . . . . . . 15 78 162 105 243 . Successful Hack 175 | . 21 . . . 24 14 43 35 12 14 12 Disable Machine 135 | . . . . . . 15 60 . 15 45 . Anti-Garrison Action 3450 | . . . . . . 1350 . 1000 . 1100 . Destroy Structure 284 | . 27 . . 3 7 62 59 55 5 57 9 Partial Spotted 30 | . . . . . 15 . . . . 15 . Lose Combat Pursuer 255 | . 15 . . . 45 90 . 15 75 15 . Influence Decreases 6691 | 10 343 84 . 3 260 150 1762 318 1829 406 1526 Entered New Map 3644 | . . 21 . . . . 920 208 1027 236 1232 Time Decay 2137 | 10 333 53 . 3 260 . 682 . 502 . 294 Lost Part 270 | . 10 10 . . . 120 50 50 . 30 . Lost Ally 640 | . . . . . . 30 110 60 300 140 . Squads Dispatched 18 | . 2 . . . 2 . 6 . 6 . 2 Investigation 1 | . 1 . . . . . . . . . . Extermination 6 | . . . . . . . 3 . 2 . 1 Reinforcement 6 | . 1 . . . 2 . 2 . 1 . . Assault 5 | . . . . . . . 1 . 3 . 1 Garrison . | . . . . . . . . . . . . Intercept . | . . . . . . . . . . . . Searches Triggered . | . . . . . . . . . . . . Construction Impeded . | . . . . . . . . . . . . Haulers Reinforced 1 | . . . . . . . 1 . . . . Active Scanning Responses . | . . . . . . . . . . . . Cargo Convoy Interrupts . | . . . . . . . . . . . . Stealth | -11 -10 -10 -10 -9 -8 -8 -7 -7 -6 -6 -6 --------- Run | Yrd Mat Min Exi Min Mat Gar Fac Gar Fac Gar Fac Distress Signals 6 | . . . . . 4 . 1 . 1 . . Communications Jammed . | . . . . . . . . . . . . Distress Signals . | . . . . . . . . . . . . Times Spotted 204 | . 21 2 . . 19 36 23 36 22 45 . Peak Tracking Total 8 | . 4 2 . . 5 5 7 5 8 7 . Tactical Retreats 12 | . 1 . . . 3 3 . 1 3 1 . Traps | -11 -10 -10 -10 -9 -8 -8 -7 -7 -6 -6 -6 ------- Run | Yrd Mat Min Exi Min Mat Gar Fac Gar Fac Gar Fac Traps Triggered 28 | . 2 . . . . 8 1 8 1 8 . Indirectly . | . . . . . . . . . . . . Trap Hack Attempts . | . . . . . . . . . . . . Triggered . | . . . . . . . . . . . . Disarmed . | . . . . . . . . . . . . Reprogrammed . | . . . . . . . . . . . . Reused . | . . . . . . . . . . . . Traps Extracted . | . . . . . . . . . . . . Installed . | . . . . . . . . . . . . Triggered . | . . . . . . . . . . . . Machines | -11 -10 -10 -10 -9 -8 -8 -7 -7 -6 -6 -6 ---------- Run | Yrd Mat Min Exi Min Mat Gar Fac Gar Fac Gar Fac Machines Disabled 27 | . . . . . . 9 4 6 1 7 . Max in Single Turn 3 | . . . . . . 2 3 1 . 1 . Garrison Relay 17 | . . . . . . 8 . 5 . 4 . Phase Generator 1 | . . . . . . . . 1 . . . Machines Repaired . | . . . . . . . . . . . . Machines Dismantled 17 | . . . . . . 6 . 6 . 5 . Machines Sabotaged . | . . . . . . . . . . . . Overloaded Fab Kills . | . . . . . . . . . . . . Hacking | -11 -10 -10 -10 -9 -8 -8 -7 -7 -6 -6 -6 --------- Run | Yrd Mat Min Exi Min Mat Gar Fac Gar Fac Gar Fac Machines Accessed 34 | . 5 1 1 . 8 2 6 3 3 2 3 Terminals 28 | . 5 . . . 7 2 5 3 2 2 2 Fabricators . | . . . . . . . . . . . . Repair Stations . | . . . . . . . . . . . . Recycling Units 1 | . . . . . . . . . . . 1 Scanalyzers . | . . . . . . . . . . . . Garrison Access 3 | . . . . . 1 . 1 . 1 . . Total Hacks 84 | . 14 1 1 . 29 6 10 7 4 4 8 Successful 38 | . 9 1 1 . 14 1 4 3 2 1 2 Failed 46 | . 5 . . . 15 5 6 4 2 3 6 Catastrophic 12 | . . . . . 1 4 2 . 2 1 2 Database Lockouts . | . . . . . . . . . . . . Manual 51 | . 11 . 1 . 21 . 8 . 3 . 7 Terminals 78 | . 14 . . . 28 6 9 7 3 4 7 Fabricators . | . . . . . . . . . . . . Repair Stations . | . . . . . . . . . . . . Recycling Units 1 | . . . . . . . . . . . 1 Scanalyzers . | . . . . . . . . . . . . Garrison Access 3 | . . . . . 1 . 1 . 1 . . Terminal Hacks 18 | . 4 1 1 . 6 1 1 3 . 1 . Robot Analysis 4 | . 2 . . . 2 . . . . . . Prototype ID Bank 1 | . . . . . 1 . . . . . . Open Door 2 | . . 1 . . . . . 1 . . . Open DSF 1 | . . . . . . . 1 . . . . Emergency Access Points 2 | . . . . . . 1 . 1 . . . Locate Traps 2 | . 2 . . . . . . . . . . Hauler Manifests 1 | . . . . . 1 . . . . . . Registered Components 1 | . . . . . 1 . . . . . . Zone Layout 1 | . . . . . 1 . . . . . . Patrol Navigation 2 | . . . . . . . . 1 . 1 . Proto ID Catalog 1 | . . . 1 . . . . . . . . Fabricator Hacks . | . . . . . . . . . . . . Repair Station Hacks . | . . . . . . . . . . . . Recycling Unit Hacks . | . . . . . . . . . . . . Scanalyzer . | . . . . . . . . . . . . Garrison Access Hacks 3 | . . . . . 1 . 1 . 1 . . Unlock Access 3 | . . . . . 1 . 1 . 1 . . Unauthorized Hacks 17 | . 5 . . . 7 . 2 . 1 . 2 Terminals 17 | . 5 . . . 7 . 2 . 1 . 2 Assimilate 1 | . . . . . 1 . . . . . . Botnet 16 | . 5 . . . 6 . 2 . 1 . 2 Fabricators . | . . . . . . . . . . . . Repair Stations . | . . . . . . . . . . . . Recycling Units . | . . . . . . . . . . . . Scanalyzers . | . . . . . . . . . . . . Garrison Access . | . . . . . . . . . . . . Data Cores Recovered . | . . . . . . . . . . . . Used . | . . . . . . . . . . . . Hacking Detections 28 | . 4 . . . 7 2 5 3 2 2 3 Full Trace Events 2 | . . . . . . 2 . . . . . Feedback Events . | . . . . . . . . . . . . Feedback Blocked . | . . . . . . . . . . . . Robot Schematics Acquired . | . . . . . . . . . . . . Robots Built . | . . . . . . . . . . . . Authchips . | . . . . . . . . . . . . Time . | . . . . . . . . . . . . Total Robot Build Rating . | . . . . . . . . . . . . Part Schematics Acquired . | . . . . . . . . . . . . Parts Built . | . . . . . . . . . . . . Authchips . | . . . . . . . . . . . . Time . | . . . . . . . . . . . . Total Part Build Rating . | . . . . . . . . . . . . Parts Repaired . | . . . . . . . . . . . . Time . | . . . . . . . . . . . . Parts Recycled . | . . . . . . . . . . . . Recycled Matter . | . . . . . . . . . . . . Retrieved Matter . | . . . . . . . . . . . . Retrieved Components . | . . . . . . . . . . . . Parts Scanalyzed . | . . . . . . . . . . . . Part Schematics Acquired . | . . . . . . . . . . . . Parts Damaged . | . . . . . . . . . . . . Bothacking | -11 -10 -10 -10 -9 -8 -8 -7 -7 -6 -6 -6 ------------ Run | Yrd Mat Min Exi Min Mat Gar Fac Gar Fac Gar Fac Used RIF Installer 4 | . . . . . . 2 . 1 . 1 . Zone Cloak 1 | . . . . . . . . 1 . . . Structural Interface 1 | . . . . . . 1 . . . . . Autooverride 1 | . . . . . . . . . . 1 . Robots Hacked 48 | . . . . . . 5 10 12 8 13 . Non-combat 6 | . . . . . . . 4 . 2 . . Combat 42 | . . . . . . 5 6 12 6 13 . Robot Hacks Applied 48 | . . . . . . 5 10 12 8 13 . no_distress 1 | . . . . . . . 1 . . . . map_route 2 | . . . . . . . 2 . . . . scatter_targeting 1 | . . . . . . . 1 . . . . amplify_resonance 2 | . . . . . . . . 1 . 1 . streamctrl_high 2 | . . . . . . . . . 2 . . formatsys_low 2 | . . . . . . . 1 . 1 . . formatsys_high 38 | . . . . . . 5 5 11 5 12 . Relay Couplers Released 72 | . . . . . . 33 . 21 . 18 . Machine Destruction 72 | . . . . . . 33 . 21 . 18 . Attached 32 | . . . . . . 6 4 9 4 9 . Fabnet Peak Effective % . | . . . . . . . . . . . . Robots Rewired 6 | . . . . . . . . 2 . 4 . Allies Hacked 1 | . . . . . . . . . . 1 . Hacks Repelled . | . . . . . . . . . . . . Allies | -11 -10 -10 -10 -9 -8 -8 -7 -7 -6 -6 -6 -------- Run | Yrd Mat Min Exi Min Mat Gar Fac Gar Fac Gar Fac Total Allies 52 | . . . . . 1 6 6 13 8 18 . Largest Group 12 | . . . . . 1 5 8 12 10 11 11 Highest-Rated Group 430 | . . . . . 10 101 147 347 283 430 423 Highest-Rated Ally 99 | . . . . . 10 39 34 40 47 99 99 Total Orders 81 | . . . . . 2 6 21 26 9 15 2 STAY 47 | . . . . . 1 3 12 14 6 9 2 FOLLOW 34 | . . . . . 1 3 9 12 3 6 . Ally Attacks 200 | . . . . . . 4 31 27 73 65 . Total Damage 5212 | . . . . . . 126 650 858 1876 1702 . Kills 35 | . . . . . . . 5 8 10 12 . Allies Corrupted . | . . . . . . . . . . . . Allies Melted . | . . . . . . . . . . . . Intel | -11 -10 -10 -10 -9 -8 -8 -7 -7 -6 -6 -6 ------- Run | Yrd Mat Min Exi Min Mat Gar Fac Gar Fac Gar Fac Active Infowar (turns) 7959 | 6 1242 . . 76 1135 1564 2627 177 1010 122 . Terrain 2 | . . . . . . 2 . . . . . Structural 7750 | . 1041 . . 76 1135 1562 2627 177 1010 122 . Seismic 207 | 6 201 . . . . . . . . . . Robot Analysis Total 4 | . 2 . . . 2 . . . . . . Derelict Logs Recovered 1 | . . . . 1 . . . . . . . Drone Launches . | . . . . . . . . . . . . Drone Recoveries . | . . . . . . . . . . . . Exploration | -11 -10 -10 -10 -9 -8 -8 -7 -7 -6 -6 -6 ------------- Run | Yrd Mat Min Exi Min Mat Gar Fac Gar Fac Gar Fac Turns Passed 17171 | 74 1620 155 256 146 1468 3043 2708 2701 1342 3001 657 Spaces Moved 9338 | 54 896 95 216 112 863 1256 1700 1549 775 1493 329 Core 1 | 1 . . . . . . . . . . . Treads 461 | . 429 . . . 11 . . . . 21 . Legs . | . . . . . . . . . . . . Wheels 8876 | 53 467 95 216 112 852 1256 1700 1549 775 1472 329 Hover . | . . . . . . . . . . . . Flight . | . . . . . . . . . . . . Fastest Speed 50 | 50 90 115 115 115 105 135 120 120 145 145 160 Average Speed 151 | 89 159 128 116 115 135 203 125 137 153 159 171 Slowest Speed 250 | 100 240 130 130 130 250 215 215 160 160 175 175 Overloaded Moves . | . . . . . . . . . . . . Propulsion Burnouts . | . . . . . . . . . . . . Robots Hopped . | . . . . . . . . . . . . Potential Cave-ins 4 | . . . . . . . . . . . 4 Cave-ins Triggered . | . . . . . . . . . . . . Exploration Rate (%) 52 | 5 97 27 60 27 72 93 27 97 19 95 13 Regions Visited 11 Branch Regions 3 Pre-discovered Areas 1 | . . . . 1 . . . . . . . Known Exits Taken 3 | . . . . . 1 . 1 . 1 . . Unknown Exits Taken 5 | 1 1 1 1 1 . . . . . . . Scrap Searched . | . . . . . . . . . . . . Spaces Dug 40 | . . . . 3 6 . 10 2 5 1 13 Terrain Destroyed 224 | . 33 . . 3 7 18 48 52 5 45 13 Melee 29 | . . . . . 6 . 10 2 5 1 5 Projectile 17 | . 2 . . 3 1 . . . . 3 8 AOE 178 | . 31 . . . . 18 38 50 . 41 . Terrain Rammed . | . . . . . . . . . . . . Walls Destroyed . | . . . . . . . . . . . . Machines Disabled . | . . . . . . . . . . . . Actions | -11 -10 -10 -10 -9 -8 -8 -7 -7 -6 -6 -6 --------- Run | Yrd Mat Min Exi Min Mat Gar Fac Gar Fac Gar Fac Total 11733 | 68 1021 109 218 118 1120 1583 2229 1988 903 1969 407 Wait 1355 | . 61 . . . 179 65 444 228 82 233 63 Move 9330 | 53 895 94 215 111 863 1255 1700 1548 775 1492 329 Hop . | . . . . . . . . . . . . Pick Up 133 | 4 13 1 1 1 19 28 10 21 6 29 . Fast Attach 46 | 7 6 . . . 4 5 6 4 3 10 1 Attach 62 | . 1 1 . . 4 13 4 13 5 21 . Detach 5 | . . . . . . 1 . 1 . 3 . Swap 144 | . 6 3 2 3 19 30 12 28 9 30 2 Drop 93 | . 7 1 . . 10 19 6 17 1 31 1 Fire 325 | 4 32 9 . 3 10 86 30 62 12 71 6 Melee 52 | . . . . . 12 9 14 3 7 2 5 Ram . | . . . . . . . . . . . . Kick . | . . . . . . . . . . . . Crush . | . . . . . . . . . . . . Escape Stasis 91 | . . . . . . 43 . 32 . 16 . Rewire 23 | . . . . . . 3 3 4 3 10 . Trap . | . . . . . . . . . . . . Miscellaneous 74 | . . . . . . 26 . 27 . 21 . Route ------- -11/Scrapyard -10/Materials (discovered 6 exits: [*Mat x3] / *Min x2 / [Sub]) -10/Mines -10/Exiles (discovered 2 exits: [*Min x2]) -9/Mines -8/Materials (discovered 2 exits: *Fac / Gar) -8/Garrison (discovered 3 exits: *Fac x3) -7/Factory (discovered 3 exits: *Fac x2 / Gar) -7/Garrison (discovered 3 exits: *Fac x3) -6/Factory (discovered 4 exits: [*Fac x2] / [*Ext] / Gar) -6/Garrison (discovered 3 exits: *Fac x3) -6/Factory (discovered 1 exit: [*Fac]) History --------- Turn | Location | Event 12 | -11/Scrapyard | Discovered new exit (range 13) 75 | -11/Scrapyard | Entered Materials 161 | -10/Materials | Discovered new exit (range 7) 305 | -10/Materials | Build established: Mutant 359 | -10/Materials | Discovered new exit (range 9) 676 | -10/Materials | Discovered new exit (range 5) 694 | -10/Materials | Discovered new exit (range 3) 875 | -10/Materials | Derelicts attacked the area 1075 | -10/Materials | Discovered new exit (range 7) 1401 | -10/Materials | Discovered new exit (range 10) 1695 | -10/Materials | Entered Mines 1811 | -10/Mines | Met a Derelict who couldn't figure out how to use a Trap Extractor 1845 | -10/Mines | Deemed a non-threat by the Exiles lab entrance 1845 | -10/Mines | Discovered new exit (range 5) 1850 | -10/Mines | Entered Exiles 1867 | -10/Exiles | Discovered new exit (range 15) 1886 | -10/Exiles | Met 8R-AWN 1905 | -10/Exiles | Met EX-HEX 1939 | -10/Exiles | Met EX-BIN 1953 | -10/Exiles | Aligned with FarCom system 1954 | -10/Exiles | Given EX-Vault access code 1982 | -10/Exiles | Opened EX-Vault 1989 | -10/Exiles | Found YOLO Cannon 2013 | -10/Exiles | Warned to stay clear of 0b10 Research branches 2047 | -10/Exiles | Met EX-DEC 2095 | -10/Exiles | Discovered new exit (range 11) 2106 | -10/Exiles | Left Exiles lab with YOLO Cannon 2106 | -10/Exiles | Entered Mines 2113 | -9/Mines | Received a Rocket Launcher from a helpful Derelict 2144 | -9/Mines | Learned location of Zion (-6) 2242 | -9/Mines | Discovered new exit (range 8) 2252 | -9/Mines | Entered Materials 2252 | -8/Materials | Evolved 4 slots: Utility x4 3337 | -8/Materials | Discovered new exit (range 11) 3720 | -8/Materials | Identified exit to Garrison 3720 | -8/Materials | Entered Garrison 3720 | -8/Garrison | Accompanied by 1 ally 3796 | -8/Garrison | Garrison Relay disabled 3848 | -8/Garrison | Triggered checkpoint 4055 | -8/Garrison | Garrison Relay disabled 4093 | -8/Garrison | Garrison Relay disabled 4119 | -8/Garrison | Lost 3 parts (2u1w) 4134 | -8/Garrison | Garrison Relay disabled 4167 | -8/Garrison | Garrison Relay disabled 4339 | -8/Garrison | Triggered checkpoint 4691 | -8/Garrison | Triggered checkpoint 4939 | -8/Garrison | Discovered new exit (range 11) 4981 | -8/Garrison | Triggered checkpoint 4998 | -8/Garrison | Core integrity fell below 50% 5024 | -8/Garrison | Garrison Relay disabled 5292 | -8/Garrison | Triggered checkpoint 5629 | -8/Garrison | Installed Relay Interface Framework 5659 | -8/Garrison | Discovered new exit (range 12) 5819 | -8/Garrison | Expanded RIF knowledge: Structural Interface 5865 | -8/Garrison | Garrison Relay disabled 5919 | -8/Garrison | Build established: Bothacker-Mutant 6026 | -8/Garrison | Discovered new exit (range 10) 6038 | -8/Garrison | Triggered checkpoint 6098 | -8/Garrison | Rescued a captive Derelict 6147 | -8/Garrison | Garrison Relay disabled 6763 | -8/Garrison | Entered Factory 6763 | -7/Factory | Accompanied by 5 allies 6763 | -7/Factory | Evolved 2 slots: Propulsion x1, Utility x1 7013 | -7/Factory | Identified exit to DSF 7563 | -7/Factory | First assault squad dispatched 7788 | -7/Factory | Lost 3 allies 8249 | -7/Factory | Discovered new exit (range 14) 8524 | -7/Factory | Lost 3 parts (1p2u) 8524 | -7/Factory | Lost 5 allies 9347 | -7/Factory | Discovered new exit (range 5) 9470 | -7/Factory | Identified exit to Garrison 9471 | -7/Factory | Entered Garrison 9471 | -7/Garrison | Accompanied by 1 ally 9480 | -7/Garrison | Triggered checkpoint 9611 | -7/Garrison | Triggered checkpoint 9659 | -7/Garrison | Garrison Relay disabled 10059 | -7/Garrison | Triggered checkpoint 10490 | -7/Garrison | Triggered checkpoint 10519 | -7/Garrison | Lost 3 parts (2u1w) 10520 | -7/Garrison | Destroyed 7 combat bots 10561 | -7/Garrison | Triggered checkpoint 10587 | -7/Garrison | Triggered checkpoint 10761 | -7/Garrison | Triggered checkpoint 10790 | -7/Garrison | Garrison Relay disabled 10853 | -7/Garrison | Discovered new exit (range 10) 11163 | -7/Garrison | Triggered checkpoint 11233 | -7/Garrison | Garrison Relay disabled 11274 | -7/Garrison | Discovered new exit (range 15) 11660 | -7/Garrison | Core integrity fell below 50% 11682 | -7/Garrison | Expanded RIF knowledge: Zone Cloak 11735 | -7/Garrison | Triggered checkpoint 11804 | -7/Garrison | Garrison Relay disabled 11853 | -7/Garrison | Discovered new exit (range 2) 11877 | -7/Garrison | Garrison Relay disabled 12054 | -7/Garrison | Phase Generator disabled 12172 | -7/Garrison | Entered Factory 12172 | -6/Factory | Accompanied by 10 allies 12172 | -6/Factory | Evolved 2 slots: Propulsion x1, Weapon x1 12722 | -6/Factory | Build established: Bothacker-Skirmisher 12792 | -6/Factory | Discovered new exit (range 15) 12797 | -6/Factory | Discovered new exit (range 12) 12872 | -6/Factory | First assault squad dispatched 12919 | -6/Factory | Lost 5 allies 13046 | -6/Factory | Lost 3 allies 13266 | -6/Factory | Build established: Bothacker-Mutant 13340 | -6/Factory | Lost 4 allies 13472 | -6/Factory | Discovered new exit (range 15) 13514 | -6/Factory | Identified exit to Garrison 13514 | -6/Factory | Entered Garrison 13834 | -6/Garrison | Triggered checkpoint 13870 | -6/Garrison | Garrison Relay disabled 13886 | -6/Garrison | Triggered checkpoint 13972 | -6/Garrison | Build established: Bothacker-Tank 14178 | -6/Garrison | Spotted B-75 Beast 14191 | -6/Garrison | Destroyed B-75 Beast 14191 | -6/Garrison | Triggered checkpoint 14413 | -6/Garrison | Discovered new exit (range 13) 14468 | -6/Garrison | Triggered checkpoint 14548 | -6/Garrison | Garrison Relay disabled 14731 | -6/Garrison | Triggered checkpoint 14735 | -6/Garrison | Triggered checkpoint 14754 | -6/Garrison | Triggered checkpoint 14760 | -6/Garrison | Destroyed 7 combat bots 14995 | -6/Garrison | Expanded RIF knowledge: Autooverride 15005 | -6/Garrison | Spotted Executioner 15007 | -6/Garrison | Destroyed Executioner 15035 | -6/Garrison | Found embedded Infiltrators 15052 | -6/Garrison | Discovered new exit (range 12) 15091 | -6/Garrison | Rewired Striker 15575 | -6/Garrison | Build established: Botlord-Mutant 15658 | -6/Garrison | Discovered new exit (range 11) 15698 | -6/Garrison | Triggered checkpoint 15832 | -6/Garrison | Garrison Relay disabled 15904 | -6/Garrison | Build established: Botlord-Tank 16031 | -6/Garrison | Triggered checkpoint 16086 | -6/Garrison | Garrison Relay disabled 16194 | -6/Garrison | Found Relay Coupler [Proto] 16197 | -6/Garrison | Found Relay Coupler [Proto] 16209 | -6/Garrison | Found Relay Coupler [Proto] 16213 | -6/Garrison | Found Relay Coupler [Proto] 16515 | -6/Garrison | Entered Factory 16515 | -6/Factory | Accompanied by 11 allies 16865 | -6/Factory | First assault squad dispatched 17096 | -6/Factory | Discovered new exit (range 9) 17101 | -6/Factory | Build established: Botlord-Mutant 17172 | -6/Factory | Self-destructed Last Messages --------------- Testing... Terminal linked with 0 systems. Awaiting botnet instructions. 16709_ Connecting with Terminal... >>Trojan(Botnet) Trojan loaded successfully. Testing... Terminal linked with 1 system. Awaiting botnet instructions. 16788_ K-01 Serf collects debris. 16865_ ALERT: Unidentified disturbance in Zone 5N, assault force dispatched. 16909_ RIF reveals location of hidden door. 16984_ ALERT: Potential suspicious activity detected, Programmers report to Factory Zone 6I. 17002_ Dropped Arm. Huge Wheel. 17002_ Acquired Arm. Huge Wheel. 17021_ Slug penetrates Earth. 17035_ ALERT: Security rotation in progress. 17036_ RIF reveals location of hidden door. 17096_ EXIT=FOUND Map ----- +----------------------------------------------------+ | ?????????????????????##"""#######????????????????? | | ????????????????????## ####??????????????????????? | | ???????????????????## ##?????????????????????????? | | ??????????????????## ##??????????????????????????? | | ?????????????????## ##???????????????????????????? | | ??????############"##############????????????????? | | ??????# # #????????????????? | | ??????# # #????????????????? | | ??????# [ / """ """ #????????????????? | | ??????# # """ """ #????????????????? | | ??????# """ """ # """ """ #????????????????? | | ??????# """ """ # #????????????????? | | ????????""" """ # """ """ #????????????????? | | ??????# # """ """ ]#????????????????? | | ??????# """ """ # """ """ #????????????????? | | ????????""" """ # #????????????????? | | ?????????"" """ # #????????????????? | | ????????? p # #????????????????? | | ??????????##+#############/###########???????????? | | ??????????? #???????????? | | ??????????? #???????????? | | ??????????? < #???????????? | | ??????????? #???????????? | | ??????????? #???????????? | | ???????????? ############+###########???????????? | | ????????????????????# @ #???????????????? | | ????????????????????# s ! #???????????????? | | ????????????????????# g #???????????????? | | ????????????????????#h #???????????????? | | ????????????????????#s """ """ #???????????????? | | ????????????????????#g """ """ #???????????????? | | ????????????????????#gbK""" """ [#???????????????? | | ????????????????????# xx #???????????????? | | ????????????????????# h""" """ #???????????????? | | ???????????????????## """ """ ?????????????????? | | ???????????????????#; """ """ ????????????????? | | ???????????????????## #???????????????? | | ???????????????????#;#############???????????????? | | ???????????????????##????????????????????????????? | | ?????????????????????????????????????????????????? | | ?????????????????????????????????????????????????? | | ?????????????????????????????????????????????????? | | ?????????????????????????????????????????????????? | | ?????????????????????????????????????????????????? | | ?????????????????????????????????????????????????? | | ?????????????????????????????????????????????????? | | ?????????????????????????????????????????????????? | | ?????????????????????????????????????????????????? | | ?????????????????????????????????????????????????? | | ?????????????????????????????????????????????????? | +----------------------------------------------------+ Best States ------------- Heat Dissipation 83 Energy Generation 25 Energy Capacity 340 Matter Stores 500 Matter Capacity 500 Sight Range 16 Terrain Scan Density 10 Corruption Block 8 Armor Coverage 450 Weapon Cycling 25 Phase Shifting 15 Evasion (%) 55 Targeting Accuracy 8 Target Analysis 5 Recoil Reduction 5 Offensive Hacking 10 Relay Coupler Types 5 Relay Coupler Value 122 Item Schematics ----------------- None Robot Schematics ------------------ None Fabricated ------------ Nothing Repaired ---------- Nothing Alien Tech Used ----------------- None Achievements -------------- Error 47 Challenges ------------ None Game ------ Seed AssemblyInsulatedClaymores Manual? 0 Play Time 03:24:06 Cumulative 122.8 hours Start 2025.07.08 @ 10:38:47 End 2025.10.04 @ 18:00:25 Sessions 15 Manual Loads 0 Difficulty Rogue Special Mode None Game No. 100 Rogue 97 Adventurer 0 Explorer 3 Win Type - Total 1 Types 1/0/0/0/0/0/0/0/0/0 Lore% 25 Gallery% 46 Achievement% 44 Wizard Run 0 Options --------- Layout 0 ASCII 0 Keyboard 0 Movement Numpad Keybinds 0 Fullscreen 2 Font 16/SmallcapsGlow Map View 88x55 Zoom Use 0% Tactical HUD 1 Map Filters NONE Filters NONE Steam 1 RUN: 7afb24ec-9ecf-4a60-b0a2-3751556b4dec